Cogmind - Beta 17 @@@ ROGUE MODE // 2026.07.11 @ 18:19:43 Player: Blaf Result: Destroyed by H-61 Shepherd with Heavy Assault Cannon Performance ------------- Evolutions (2) 1000 Regions Visited (3) 600 Robots Destroyed (26) 130 Value Destroyed (900) 900 Prototype IDs (1) 20 Alien Tech Used (0) 0 Bonus (0) 0 TOTAL SCORE: 2650 Bonus ------- None Cogmind --------- Core Integrity 0/550 Matter 247/300 Energy 92/100 System Corruption 1% Temperature Cool (0) Movement Core (50) Location -8/Materials Parts ------- > --- POWER (1) -------- (None) > --- PROPULSION (4) --- (None) > --- UTILITY (3) ------ (None) > --- WEAPON (3) ------- (None) > --- INVENTORY (5) ---- Improved Ion Engine Aluminum Leg Peak State ------------ > --- POWER ------------ Reinforced Ion Engine > --- PROPULSION ------- Aluminum Leg Aluminum Leg Aluminum Leg Aluminum Leg > --- UTILITY ---------- Small Storage Unit System Shield Field Recycling Unit > --- WEAPON ----------- Light Assault Rifle Autogun Mini Grenade Launcher > --- INVENTORY -------- Ion Engine Improved Ion Engine Aluminum Leg Aluminum Leg [Rating: 17] Favorites ----------- Power Ion Engine Engine Ion Engine Propulsion Aluminum Leg Leg Aluminum Leg Utility Small Storage Unit Device Field Recycling Unit Storage Small Storage Unit Hackware System Shield Weapon Light Assault Rifle Ballistic Gun Light Assault Rifle Launcher Mini Grenade Launcher Build | -11 -10 -9 -8 ------- Run | Yrd Mat Mat Mat Slots Evolved 4 | . . 2 2 Power . | . . . . Propulsion 2 | . . 2 . Utility 1 | . . . 1 Weapon 1 | . . . 1 Parts Attached 23 | 5 4 11 3 Power 4 | 1 2 1 . Engine 4 | 1 2 1 . Core . | . . . . Reactor . | . . . . Propulsion 10 | 2 1 7 . Treads . | . . . . Leg 10 | 2 1 7 . Wheel . | . . . . Hover . | . . . . Flight . | . . . . Utility 3 | 1 . . 2 Device 1 | . . . 1 Storage 1 | 1 . . . Processor . | . . . . Hackware 1 | . . . 1 Protection . | . . . . Artifact . | . . . . Weapon 6 | 1 1 3 1 Energy Gun . | . . . . Energy Cannon . | . . . . Ballistic Gun 5 | 1 1 2 1 Ballistic Cannon . | . . . . Launcher 1 | . . 1 . Special Weapon . | . . . . Impact Weapon . | . . . . Slashing Weapon . | . . . . Piercing Weapon . | . . . . Special Melee Weapon . | . . . . Unidentified Prototypes 1 | . . 1 . Parts Lost 19 | . . 5 14 Power 2 | . . . 2 Propulsion 9 | . . 4 5 Utility 3 | . . . 3 Weapon 5 | . . 1 4 Highest Loss Streak 13 | . . 4 13 To Critical Strikes . | . . . . Average Backups 2 | . 1 2 4 Power 1 | . 1 1 1 Propulsion . | . . . 1 Utility . | . . . . Weapon . | . . . . Tool/Special . | . . . . Unused Backups . | . . . . Power . | . . . . Propulsion . | . . . . Utility . | . . . . Weapon . | . . . . Tool/Special . | . . . . Average Slot Usage (%) 81 | . 83 77 84 Engine 10 | . 14 11 7 Leg 33 | . 28 35 33 Device 1 | . . . 5 Storage 11 | . 14 11 8 Hackware 2 | . . . 7 Ballistic Gun 17 | . 26 14 13 Launcher 5 | . . 5 8 Peak Build Rating 17 | 5 6 11 17 Average Rating 9 | 3 5 8 14 On Entrance 5 | . 5 6 11 Avg Prop Armor Cover (%) . | . . . . Naked Turns 6 | . . . 6 Heaviest Build 28 | 12 13 19 28 Greatest Support 40 | 20 20 40 40 Greatest Overweight (x) 3 | . . 3 . Average Overweight (x) . | . . . . Largest Inventory Capacity 8 | 8 8 8 8 Average Capacity 7 | 6 8 8 7 Most Carried 5 | 1 3 5 5 Average Carried 2 | . 1 2 4 Final Capacity 8 | 8 8 8 5 Final Carried 5 | 1 3 5 2 Class Distribution -------------------- 69% | Mutant 15% | Scavenger-Gunner 14% | Scavenger-Mutant Dominant Class ---------------- Mutant | -10/Materials Mutant | -9/Materials Scavenger-Gunner | -8/Materials Resources | -11 -10 -9 -8 ----------- Run | Yrd Mat Mat Mat Matter Collected 694 | 196 126 233 139 Remotely . | . . . . Salvage Created 857 | . 111 435 311 Parts 52 | . 8 31 13 Haulers Intercepted 1 | . 1 . . Recyclers Shooed . | . . . . Parts Field Recycled 12 | . . . 12 Retrieved Matter 144 | . . . 144 Parts Self-Destructed . | . . . . Prevented . | . . . . Parts Restored . | . . . . Kills | -11 -10 -9 -8 ------- Run | Yrd Mat Mat Mat Combat Hostiles Destroyed 20 | . 2 11 7 Guns 9 | . 2 2 5 AOE 11 | . . 9 2 Classes Destroyed 11 | . 2 7 2 Worker 1 | . . . 1 Tunneler 1 | . . 1 . Hauler 1 | . 1 . . Recycler 1 | . . 1 . Operator 1 | . . 1 . Watcher 1 | . . 1 . Grunt 12 | . 2 6 4 Brawler 1 | . . 1 . Duelist 2 | . . 1 1 Sentry 4 | . . 3 1 Specialist 1 | . . . 1 Best Kill Streak 8 | . 2 8 5 Combat Bots Only 6 | . 2 6 4 Max Kills in Single Turn 3 | . 1 3 2 Gunslinging . | . . . . Exploded 3 | . . 3 2 Melee . | . . . . Uniques/NPCs Destroyed . | . . . . Combat | -11 -10 -9 -8 -------- Run | Yrd Mat Mat Mat Hostile Shots Fired 148 | . 16 71 61 Missed 44 | . 6 18 20 Hits 104 | . 10 53 41 Melee 9 | . . 6 3 Projectile 95 | . 10 47 38 Critical Strikes 9 | . . 3 6 Damage Taken 2314 | . 132 861 1321 Core 780 | . 23 206 551 Absorbed by Shields . | . . . . Regen/Repaired (Parts) 49 | . . 49 . Core Remaining (%) 79 | 100 90 48 . Volleys Fired 57 | . 8 28 21 Largest 3 | . 2 2 3 Hottest 73 | . 40 53 73 Shots Fired 106 | . 16 48 42 Gun 82 | . 16 32 34 Cannon . | . . . . Launcher 24 | . . 16 8 Special . | . . . . Kinetic 82 | . 16 32 34 Thermal . | . . . . Explosive 24 | . . 16 8 Electromagnetic . | . . . . Robot Hit Streak 10 | . 5 10 6 Robot Miss Streak 3 | . 1 2 3 Penetration Max . | . . . . Secondary Targets . | . . . . Shots Hit Robots 63 | . 12 27 24 Core Hits 48 | . 7 20 21 Critical Kills . | . . . . Critical Parts Destroyed 1 | . . . 1 Critical Strikes 1 | . . . 1 Destroy 1 | . . . 1 Melee Attacks . | . . . . Impact . | . . . . Slashing . | . . . . Piercing . | . . . . Sneak Attacks . | . . . . Combat Hostiles . | . . . . Follow-up Attacks . | . . . . Damage Inflicted 1880 | . 134 1066 680 Guns 691 | . 134 287 270 Cannons . | . . . . Explosions 1189 | . . 779 410 Melee . | . . . . Ramming . | . . . . Kinetic 691 | . 134 287 270 Thermal . | . . . . Explosive 1189 | . . 779 410 Electromagnetic . | . . . . Impact . | . . . . Slashing . | . . . . Piercing . | . . . . Highest Corruption 5 | . 5 . 1 Average Corruption 1 | . 3 . 1 Corruption Purged . | . . . . Corruption Blocked . | . . . . Effects 3 | . 2 . 1 Message Errors 1 | . 1 . . Data Loss (major) 2 | . 1 . 1 Overload Shots . | . . . . Overflow Damage 35 | . . 17 18 Projectiles . | . . . . Explosions 35 | . . 17 18 Melee . | . . . . Knockbacks . | . . . . Impact . | . . . . Kinetic . | . . . . Secondary . | . . . . Self-Inflicted Damage 219 | . . 73 146 Shots 6 | . . 2 4 Rammed . | . . . . Targets Rammed . | . . . . Kicked . | . . . . Crushed . | . . . . Highest Temperature 103 | . 12 41 103 Average Temperature 20 | . 7 15 27 Received Heat Transfer 522 | . 60 246 216 Siege Activations . | . . . . Martial Activations . | . . . . Shielding Activations . | . . . . Robots Disrupted . | . . . . Combat Hostiles . | . . . . Robots Corrupted . | . . . . Combat Hostiles . | . . . . Parts Fried . | . . . . Impact Corruptions . | . . . . Robots Melted . | . . . . Combat Hostiles . | . . . . Parts Melted . | . . . . Heat Transferred . | . . . . Parts Sabotaged . | . . . . Parts Stolen . | . . . . Parts Stripped . | . . . . Power Chain Reactions . | . . . . Alert | -11 -10 -9 -8 ------- Run | Yrd Mat Mat Mat Maximum Alert Level 1 | . . 1 . Low Security (%) 92 | 100 100 83 100 Level 1 7 | . . 16 . Level 2 . | . . . . Level 3 . | . . . . Level 4 . | . . . . Level 5 . | . . . . High Security . | . . . . Max Security . | . . . . Peak Influence 316 | . 40 316 122 Initial 122 | . . . 122 Average 65 | . 4 112 53 Influence Increases 778 | . 47 506 225 Destroy 0b10 Robot/C 400 | . 40 220 140 Destroy 0b10 Robot/NC 30 | . 5 20 5 Destroy Leader 114 | . 2 82 30 Disable Machine 30 | . . 30 . Destroy Structure 174 | . . 124 50 Lose Combat Pursuer 30 | . . 30 . Influence Decreases 751 | . 47 214 490 Entered New Map 170 | . . . 170 Time Decay 419 | . 47 174 198 Lost Part 162 | . . 40 122 Squads Dispatched 5 | . . 3 2 Investigation . | . . . . Extermination . | . . . . Reinforcement 5 | . . 3 2 Assault . | . . . . Garrison . | . . . . Intercept . | . . . . Searches Triggered . | . . . . Construction Impeded 1 | . . 1 . Haulers Reinforced . | . . . . Active Scanning Responses . | . . . . Cargo Convoy Interrupts . | . . . . Stealth | -11 -10 -9 -8 --------- Run | Yrd Mat Mat Mat Distress Signals 2 | . . . 2 Communications Jammed . | . . . . Distress Signals . | . . . . Times Spotted 34 | . 4 15 15 Peak Tracking Total 8 | . 3 7 8 Tactical Retreats 1 | . . 1 . Traps | -11 -10 -9 -8 ------- Run | Yrd Mat Mat Mat Traps Triggered 3 | . 3 . . Indirectly . | . . . . Trap Hack Attempts . | . . . . Triggered . | . . . . Disarmed . | . . . . Reprogrammed . | . . . . Reused . | . . . . Traps Extracted . | . . . . Installed . | . . . . Triggered . | . . . . Machines | -11 -10 -9 -8 ---------- Run | Yrd Mat Mat Mat Machines Disabled 2 | . . 2 . Max in Single Turn 1 | . . 1 . Machines Repaired . | . . . . Machines Dismantled . | . . . . Machines Sabotaged . | . . . . Overloaded Fab Kills . | . . . . Hacking | -11 -10 -9 -8 --------- Run | Yrd Mat Mat Mat Machines Accessed 2 | . . 1 1 Terminals 1 | . . . 1 Fabricators . | . . . . Repair Stations 1 | . . 1 . Recycling Units . | . . . . Scanalyzers . | . . . . Garrison Access . | . . . . Total Hacks 10 | . . 7 3 Successful 6 | . . 3 3 Failed 4 | . . 4 . Catastrophic . | . . . . Database Lockouts . | . . . . Manual . | . . . . Terminals 3 | . . . 3 Fabricators . | . . . . Repair Stations 7 | . . 7 . Recycling Units . | . . . . Scanalyzers . | . . . . Garrison Access . | . . . . Terminal Hacks 3 | . . . 3 Alert Level 1 | . . . 1 Locate Traps 1 | . . . 1 Zone Layout 1 | . . . 1 Fabricator Hacks . | . . . . Repair Station Hacks 3 | . . 3 . Scan Component 2 | . . 2 . Repair 1 | . . 1 . Recycling Unit Hacks . | . . . . Scanalyzer . | . . . . Garrison Access Hacks . | . . . . Unauthorized Hacks . | . . . . Terminals . | . . . . Fabricators . | . . . . Repair Stations . | . . . . Recycling Units . | . . . . Scanalyzers . | . . . . Garrison Access . | . . . . Data Cores Recovered . | . . . . Used . | . . . . Hacking Detections 1 | . . 1 . Full Trace Events . | . . . . Feedback Events . | . . . . Feedback Blocked . | . . . . Robot Schematics Acquired . | . . . . Robots Built . | . . . . Authchips . | . . . . Time . | . . . . Total Robot Build Rating . | . . . . Part Schematics Acquired . | . . . . Parts Built . | . . . . Authchips . | . . . . Time . | . . . . Total Part Build Rating . | . . . . Part Studies Acquired . | . . . . Parts Repaired 1 | . . 1 . Time 32 | . . 32 . Parts Recycled . | . . . . Recycled Matter . | . . . . Retrieved Matter . | . . . . Retrieved Components . | . . . . Parts Scanalyzed . | . . . . Part Schematics Acquired . | . . . . Parts Damaged . | . . . . Bothacking | -11 -10 -9 -8 ------------ Run | Yrd Mat Mat Mat Used RIF Installer . | . . . . Robots Hacked . | . . . . Non-combat . | . . . . Combat . | . . . . Robot Hacks Applied . | . . . . Relay Couplers Released . | . . . . Fabnet Peak Effective % . | . . . . Robots Rewired . | . . . . Allies Hacked . | . . . . Hacks Repelled . | . . . . Allies | -11 -10 -9 -8 -------- Run | Yrd Mat Mat Mat Total Allies . | . . . . Largest Group . | . . . . Highest-Rated Group . | . . . . Highest-Rated Ally . | . . . . Total Orders . | . . . . Ally Attacks . | . . . . Total Damage . | . . . . Kills . | . . . . Allies Corrupted . | . . . . Allies Melted . | . . . . Intel | -11 -10 -9 -8 ------- Run | Yrd Mat Mat Mat Active Infowar (turns) . | . . . . Robot Analysis Total . | . . . . Derelict Logs Recovered . | . . . . Drone Launches . | . . . . Drone Recoveries . | . . . . Exploration | -11 -10 -9 -8 ------------- Run | Yrd Mat Mat Mat Turns Passed 1464 | 74 346 642 402 Spaces Moved 981 | 59 260 400 262 Core 10 | 6 . 2 2 Treads . | . . . . Legs 971 | 53 260 398 260 Wheels . | . . . . Hover . | . . . . Flight . | . . . . Fastest Speed 50 | 50 120 120 50 Average Speed 119 | 112 120 121 119 Slowest Speed 200 | 120 120 200 120 Overloaded Moves . | . . . . Propulsion Burnouts . | . . . . Robots Hopped . | . . . . Potential Cave-ins . | . . . . Cave-ins Triggered . | . . . . Exploration Rate (%) 25 | 4 42 27 28 Regions Visited 3 Branch Regions . Pre-discovered Areas . | . . . . Known Exits Taken . | . . . . Unknown Exits Taken 3 | 1 1 1 . Scrap Searched . | . . . . Spaces Dug . | . . . . Terrain Destroyed 198 | . . 146 52 Melee . | . . . . Projectile . | . . . . AOE 198 | . . 146 52 Terrain Rammed . | . . . . Walls Destroyed . | . . . . Machines Disabled . | . . . . Actions | -11 -10 -9 -8 --------- Run | Yrd Mat Mat Mat Total 1163 | 64 278 506 315 Wait 83 | . 3 56 24 Move 978 | 58 259 399 262 Hop . | . . . . Pick Up 6 | 1 2 2 1 Fast Attach 16 | 5 1 8 2 Attach 8 | . . 4 4 Detach 1 | . . 1 . Swap 9 | . 3 5 1 Drop 5 | . 2 3 . Fire 57 | . 8 28 21 Melee . | . . . . Ram . | . . . . Kick . | . . . . Crush . | . . . . Escape Stasis . | . . . . Rewire . | . . . . Trap . | . . . . Miscellaneous . | . . . . Route ------- -11/Scrapyard -10/Materials -9/Materials -8/Materials History --------- Turn | Location | Event 4 | -11/Scrapyard | Discovered new exit (range 15) 75 | -11/Scrapyard | Entered Materials 313 | -10/Materials | Build established: Mutant 391 | -10/Materials | Discovered new exit (range 11) 421 | -10/Materials | Entered another Materials area 421 | -9/Materials | Evolved 2 slots: Propulsion x2 709 | -9/Materials | Lost 4 parts (3n1w) 818 | -9/Materials | Repaired Mni. Grenade Launcher 963 | -9/Materials | Core integrity fell below 50% 1008 | -9/Materials | Discovered new exit (range 15) 1063 | -9/Materials | Entered another Materials area 1063 | -8/Materials | Evolved 2 slots: Utility x1, Weapon x1 1455 | -8/Materials | Core integrity fell below 50% 1464 | -8/Materials | Core integrity fell below 20% 1465 | -8/Materials | Destroyed by H-61 Shepherd with Heavy Assault Cannon Last Messages --------------- 01452_ Field Recycling Unit destroyed. 01452_ Destroyed Field Recycling Unit. 01453_ The unstable cave ceiling collapses. 01454_ Penetrated by Slug. 01455_ The unstable cave ceiling collapses. 01455_ K-01 Serf destroyed. 01455_ Mni. Grenade Launcher destroyed. 01457_ System corrupted: Substantial component data lost. 01457_ Lgt. Assault Rifle destroyed. 01458_ Slug penetrates Wall. 01458_ Critical hit (Burn: +37). 01458_ Slug penetrates X-62 Marksman. 01458_ Aluminum Leg destroyed. 01460_ The unstable cave ceiling collapses. 01460_ X-62 Marksman destroyed. 01460_ K-01 Serf collects debris. 01461_ Autogun destroyed. 01462_ Penetrated by Slug. 01464_ U-05 Engineer builds a Wall. Map ----- +----------------------------------------------------+ | ???????????????????????????????????????????? | | ???????????????????????????????????????????? | | ???????????????????????????????????????????? | | ???????????????????????????????????????????? | | ???????????????????????????????????????????? | | ???????????????????????????? ##????????????? | | ???????????????????????????? ????????????? | | ???????????????????????????? ????????????? | | ???????????????????????????# ????????????? | | ???????????????????????????# ??? #???????? | | ???????????????????????????# """ #???????? | | ???????????????????????????# """ ##+#????? | | ???????????????????????????# """ #????? | | ???????????????????????????# #????? | | ???????????????#####????#### #????? | | ???????????????# !????# ^ #????? | | ???????????????# ???# #????? | | ???????????????#=== ???# " " #????? | | ???????????????#== ### "R" #????? | | ???????????????#== # # """ #????? | | ???????????????# uk #????? | | ???????????????## #g #????? | | ???????????##### g##### ####?? | | ?????????? gux ##?# !##? | | ?????????? m =%/% #?# !#? | | ?????????? % H %@; #?# !#? | | ?????????????### = # ##### !#? | | ???????????????# # + !#? | | ???????????????# [ """ # !##? | | ???????????????# # """ # ####?? | | ???????????????#[[ ## """ + #????? | | ???????????????#[! ?# u""" ####### #????? | | ???????????????#[ ??# """ ??????# #????? | | ???????????????# ???# ?????### ###??? | | ???????????????#####???#! """?????# #??? | | ???????????????????????# ""??????# #??? | | ???????????????????????# ""??????# #??? | | ???????????????????????/w ""??????# #??? | | ???????????????????????# ""??????# #??? | | ???????????????????????? ? ?????## ##??? | | ????????????????????????####+####### #???? | | ?????????????????????#####^ #???? | | ?????????????????????? ^ [ #???? | | ?????????????????????????# ^ #???? | | ?????????????????????????# ^ ###+#####? | | ?????????????????????????# # #? | | ??????+ ########### # " #? | | ??????# ## + # "" #? | | ??????# ## ## # !"" #? | | ??????# ## ###/### # " #? | +----------------------------------------------------+ Best States ------------- Heat Dissipation 31 Energy Generation 12 Energy Capacity 265 Matter Stores 300 Matter Capacity 300 Sight Range 16 Terrain Scan Density 10 Evasion (%) 55 Defensive Hacking 10 Item Schematics ----------------- None Robot Schematics ------------------ None Fabricated ------------ Nothing Repaired ---------- Mni. Grenade Launcher | 2% | -9/Materials Studied --------- None Alien Tech Used ----------------- None Achievements -------------- None Challenges ------------ None Game ------ Seed NuclearPlexusCharger Manual? 0 Play Time 00:17:34 Cumulative 14.6 hours Start 2026.07.11 @ 18:03:43 End 2026.07.11 @ 18:19:43 Sessions 1 Manual Loads 0 Difficulty Rogue Special Mode None Game No. 27 Rogue 27 Adventurer 0 Explorer 0 Win Type - Total 0 Types 0/0/0/0/0/0/0/0/0/0 Lore% 7 Gallery% 14 Achievement% 12 Wizard Run 0 Options --------- Layout 1 ASCII 0 Keyboard 0 Movement Arrows Keybinds 0 Fullscreen 1 Font 24/Smallcaps Map View 50x35 Zoom Use 0% Tactical HUD 1 Map Filters NONE Filters NONE Steam 1 RUN: c508bbff-2c5e-498e-b4bf-8c01cecb4387